Cogmind - Beta 11 @@@ ROGUE MODE // 2022.04.07 @ 16:58:22 Player: Virvatuli Result: Destroyed by P-60 Hacker with Shock Rifle Performance ------------- Evolutions (3) 1500 Regions Visited (5) 1000 Robots Destroyed (41) 205 Value Destroyed (1201) 1201 Prototype IDs (2) 40 Alien Tech Used (0) 0 Bonus (12) 12 TOTAL SCORE: 3958 Bonus ------- High Alert Combat Kills 12 Cogmind --------- Core Integrity 0/700 Matter 68/300 Energy 95/100 System Corruption 13% Temperature Cool (0) Movement Core (100) Ox1 Location -7/Factory Parts ------- > --- POWER (2) -------- (None) > --- PROPULSION (4) --- (None) > --- UTILITY (5) ------ Improved Heat Sink > --- WEAPON (2) ------- Heavy Hammer > --- INVENTORY (5) ---- Improved Heat Sink Improved Heat Sink Core Analyzer Peak State ------------ > --- POWER ------------ Backup Power III Light Nuclear Core > --- PROPULSION ------- Medium Treads Medium Treads Backup Propulsion III Backup Propulsion III > --- UTILITY ---------- Signal Interpreter Transmission Jammer Reaction Control System Improved Medium Armor Plating > --- WEAPON ----------- Backup Laser III Blade Saw > --- INVENTORY -------- Advanced Assault Cannon [Rating: 38] Favorites ----------- Power Light Nuclear Core Engine Ion Engine Power Core Light Nuclear Core Propulsion Improved Hover Unit Treads Light Treads Leg Aluminum Leg Hover Unit Improved Hover Unit Flight Unit Improved Flight Unit Utility Improved Light Armor Plating Device Improved Heat Sink Storage Small Storage Unit Processor Signal Interpreter Protection Improved Light Armor Plating Weapon Advanced Assault Cannon Energy Gun Small Laser Energy Cannon Beam Cannon Ballistic Gun Assault Rifle Ballistic Cannon Advanced Assault Cannon Impact Weapon Heavy Hammer Slashing Weapon Blade Saw Special Melee Weapon Datajack Build | -11 -10 -10 -9 -8 -7 ------- Run | Scr Mat Min Mat Mat Fac Slots Evolved 6 | . . . 2 2 2 Power 1 | . . . . 1 . Propulsion 2 | . . . 1 1 . Utility 3 | . . . 1 . 2 Weapon . | . . . . . . Parts Attached 77 | 7 14 4 12 9 31 Power 11 | 2 2 . 1 2 4 Engine 7 | 2 2 . 1 1 1 Core 4 | . . . . 1 3 Reactor . | . . . . . . Propulsion 17 | 2 4 2 3 1 5 Treads 4 | . . . . . 4 Leg 3 | 2 . . . . 1 Wheel . | . . . . . . Hover 3 | . . . 3 . . Flight 7 | . 4 2 . 1 . Utility 28 | 1 6 . 3 3 15 Device 15 | . 4 . 2 2 7 Storage 1 | 1 . . . . . Processor 4 | . 2 . 1 1 . Hackware . | . . . . . . Protection 8 | . . . . . 8 Artifact . | . . . . . . Weapon 21 | 2 2 2 5 3 7 Energy Gun 9 | 1 1 2 3 1 1 Energy Cannon 1 | . 1 . . . . Ballistic Gun 4 | 1 . . 1 . 2 Ballistic Cannon 3 | . . . 1 1 1 Launcher . | . . . . . . Special Weapon . | . . . . . . Impact Weapon 2 | . . . . . 2 Slashing Weapon 1 | . . . . . 1 Piercing Weapon . | . . . . . . Special Melee Weapon 1 | . . . . 1 . Unidentified Prototypes 2 | . 1 . 1 . . Corrupted Parts 2 | . . . . 2 . System Corruption 6 | . . . . 6 . Parts Lost 28 | . . 1 1 5 21 Power 3 | . . . . . 3 Propulsion 8 | . . . . 3 5 Utility 13 | . . . 1 1 11 Weapon 4 | . . 1 . 1 2 Highest Loss Streak 9 | . . 1 1 3 9 To Critical Strikes . | . . . . . . Average Slot Usage (%) 72 | . 83 85 90 80 56 Engine 8 | . 14 14 11 9 3 Core 2 | . . . . 7 4 Treads 2 | . . . . . 4 Leg 3 | . 17 . . . . Hover 6 | . . . 22 23 2 Flight 5 | . 10 28 7 . . Device 10 | . 4 14 9 8 13 Storage 1 | . 9 . . . . Processor 7 | . 3 14 22 18 1 Protection 6 | . . . . . 13 Energy Gun 4 | . 6 14 11 4 . Energy Cannon 1 | . 7 . . . . Ballistic Gun 2 | . 8 . 3 . 1 Ballistic Cannon 3 | . . . 2 9 4 Impact Weapon 1 | . . . . . 3 Naked Turns 21 | . . . . . 21 Heaviest Build 35 | 13 15 8 16 26 35 Greatest Support 40 | 20 20 10 21 21 40 Greatest Overweight (x) 11 | . 2 . . 6 11 Average Overweight (x) . | . . . . . 1 Largest Inventory Capacity 8 | 8 8 5 5 5 5 Average Capacity 5 | 6 6 5 5 5 5 Most Carried 7 | 1 7 5 4 3 3 Average Carried 1 | . 3 4 1 1 1 Final Capacity 8 | 8 5 5 5 5 5 Final Carried 4 | 1 4 4 . 2 3 Class Distribution -------------------- 86% | Mutant 13% | Scavenger-Mutant Dominant Class ---------------- Mutant | -10/Materials Mutant | -10/Mines Mutant | -9/Materials Mutant | -8/Materials Mutant | -7/Factory Resources | -11 -10 -10 -9 -8 -7 ----------- Run | Scr Mat Min Mat Mat Fac Matter Collected 1107 | 247 154 95 199 118 294 Remotely . | . . . . . . Salvage Created 1312 | . 225 58 416 345 268 Parts 76 | . 11 . 29 24 12 Haulers Intercepted . | . . . . . . Recyclers Shooed . | . . . . . . Parts Field Recycled . | . . . . . . Retrieved Matter . | . . . . . . Parts Self-Destructed . | . . . . . . Prevented . | . . . . . . Kills | -11 -10 -10 -9 -8 -7 ------- Run | Scr Mat Min Mat Mat Fac Combat Hostiles Destroyed 31 | . 3 2 9 10 7 Melee 1 | . . . . . 1 Guns 18 | . 3 2 9 2 2 Cannons 9 | . . . . 6 3 AOE 2 | . . . . 2 . Classes Destroyed 11 | . 4 2 2 3 . Worker 1 | . . . . 1 . Tunneler 1 | . 1 . . . . Recycler 2 | . 2 . . . . Operator 1 | . . . . 1 . Watcher 5 | . 1 . 4 . . Swarmer 8 | . 3 . 3 2 . Cutter 2 | . . . . 2 . Grunt 15 | . . . 5 5 5 Duelist 1 | . . . 1 . . Sentry 4 | . . 1 . 1 2 Demolisher 1 | . . 1 . . . Best Kill Streak 6 | . 6 1 5 4 3 Combat Bots Only 4 | . 3 1 3 4 3 Max Kills in Single Turn 3 | . 2 1 2 3 1 Gunslinging 1 | . . . 1 . . Exploded 2 | . . . . 2 . Melee 1 | . . . . . 1 Uniques/NPCs Destroyed . | . . . . . . Combat | -11 -10 -10 -9 -8 -7 -------- Run | Scr Mat Min Mat Mat Fac Damage Taken 4219 | . 129 425 234 424 3007 Core 1023 | . 17 155 71 66 714 Absorbed by Shields . | . . . . . . Core Remaining (%) 75 | 100 . 31 82 88 . Volleys Fired 115 | . 19 11 34 25 26 Largest 2 | . 2 2 2 2 2 Hottest 96 | . 80 96 94 94 76 Shots Fired 183 | . 36 13 54 40 40 Gun 112 | . 19 13 52 15 13 Cannon 71 | . 17 . 2 25 27 Launcher . | . . . . . . Special . | . . . . . . Kinetic 102 | . 17 . 20 25 40 Thermal 36 | . 19 13 4 . . Explosive . | . . . . . . Electromagnetic 45 | . . . 30 15 . Robot Hit Streak 9 | . 5 4 9 7 5 Robot Miss Streak 10 | . 8 2 3 10 8 Penetration Max . | . . . . . . Secondary Targets 2 | . . . 2 . . Max Gunslinging Chain 1 | . . . 1 . . Shots Hit Robots 141 | . 14 7 36 34 50 Core Hits 105 | . 8 3 23 46 25 Critical Kills . | . . . . . . Critical Parts Destroyed 3 | . . . . . 3 Critical Strikes 8 | . . . . . 8 Blast 3 | . . . . . 3 Smash 4 | . . . . . 4 Sever 1 | . . . . . 1 Melee Attacks 32 | . . . . . 32 Impact 26 | . . . . . 26 Slashing 6 | . . . . . 6 Piercing . | . . . . . . Sneak Attacks . | . . . . . . Combat Hostiles . | . . . . . . Follow-up Attacks . | . . . . . . Damage Inflicted 3099 | . 256 90 671 770 1312 Guns 1324 | . 114 90 651 252 217 Cannons 961 | . 142 . 20 422 377 Explosions 96 | . . . . 96 . Melee 636 | . . . . . 636 Ramming 82 | . . . . . 82 Kinetic 1304 | . 114 . 174 422 594 Thermal 361 | . 142 90 33 96 . Explosive . | . . . . . . Electromagnetic 716 | . . . 464 252 . Impact 537 | . . . . . 537 Slashing 99 | . . . . . 99 Piercing . | . . . . . . Highest Corruption 12 | . . . . 6 12 Average Corruption 7 | . . . . 5 7 Corruption Purged . | . . . . . . Corruption Blocked . | . . . . . . Effects 31 | . . . . 6 25 Message Errors 6 | . . . . 1 5 Matter Fused 13 | . . . . 3 10 Heat Flow Errors 2 | . . . . . 2 Energy Discharges 3 | . . . . . 3 Parts Rejected 1 | . . . . . 1 Data Loss (minor) 4 | . . . . 1 3 Data Loss (major) 1 | . . . . 1 . Misfires 1 | . . . . . 1 Overload Shots . | . . . . . . Overflow Damage 135 | . . . . . 135 Projectiles . | . . . . . . Explosions . | . . . . . . Melee 135 | . . . . . 135 Knockbacks 21 | . . . . 17 4 Impact . | . . . . . . Kinetic 20 | . . . . 16 4 Secondary 1 | . . . . 1 . Self-Inflicted Damage 86 | . . . . 52 34 Shots 1 | . . . . 1 . Rammed 30 | . . . . . 30 Targets Rammed 30 | . . . . . 30 Kicked . | . . . . . . Crushed . | . . . . . . Highest Temperature 254 | . 108 74 151 254 242 Average Temperature 56 | . 43 33 44 78 118 Received Heat Transfer 1167 | . . . 45 99 1023 Effects 1 | . . . . 1 . Energy Bleed 1 | . . . . 1 . Siege Activations . | . . . . . . Robots Corrupted . | . . . . . . Combat Hostiles . | . . . . . . Parts Fried 3 | . . . 3 . . Impact Corruptions 5 | . . . . . 5 Robots Melted . | . . . . . . Combat Hostiles . | . . . . . . Parts Melted 1 | . . 1 . . . Heat Transferred 633 | . 296 212 75 50 . Parts Sabotaged . | . . . . . . Parts Stolen . | . . . . . . Parts Stripped . | . . . . . . Power Chain Reactions 2 | . . . . 1 1 Missiles Intercepted . | . . . . . . Alert | -11 -10 -10 -9 -8 -7 ------- Run | Scr Mat Min Mat Mat Fac Peak Influence 487 | . 122 85 487 411 260 Initial 205 | . . 5 29 205 152 Average 123 | . 29 39 291 313 98 Maximum Alert Level 2 | . . . 2 2 1 Low Security (%) 78 | 100 100 100 35 . 93 Level 1 16 | . . . 29 92 6 Level 2 5 | . . . 35 7 . Level 3 . | . . . . . . Level 4 . | . . . . . . Level 5 . | . . . . . . High Security . | . . . . . . Max Security . | . . . . . . Squads Dispatched 8 | . 1 . 3 2 2 Investigation 4 | . 1 . 2 . 1 Extermination 1 | . . . . . 1 Reinforcement 3 | . . . 1 2 . Assault . | . . . . . . Garrison . | . . . . . . Intercept . | . . . . . . Searches Triggered . | . . . . . . Construction Impeded . | . . . . . . Haulers Reinforced . | . . . . . . Active Scanning Responses . | . . . . . . Cargo Convoy Interrupts . | . . . . . . Stealth | -11 -10 -10 -9 -8 -7 --------- Run | Scr Mat Min Mat Mat Fac Distress Signals 5 | . 1 . 3 1 . Communications Jammed . | . . . . . . Distress Signals . | . . . . . . Times Spotted 67 | . 7 8 23 18 11 Peak Tracking Total 7 | . 3 4 6 7 4 Tactical Retreats 8 | . . 1 5 . 2 Traps | -11 -10 -10 -9 -8 -7 ------- Run | Scr Mat Min Mat Mat Fac Traps Triggered 3 | . . . 2 . 1 Indirectly . | . . . . . . Trap Hack Attempts . | . . . . . . Triggered . | . . . . . . Disarmed . | . . . . . . Reprogrammed . | . . . . . . Reused . | . . . . . . Traps Extracted . | . . . . . . Installed . | . . . . . . Triggered . | . . . . . . Machines | -11 -10 -10 -9 -8 -7 ---------- Run | Scr Mat Min Mat Mat Fac Machines Disabled 3 | . 1 . . 1 1 Max in Single Turn 1 | . 1 . . 1 1 Machines Sabotaged . | . . . . . . Garrisons Compromised . | . . . . . . Overloaded Fab Kills . | . . . . . . Hacking | -11 -10 -10 -9 -8 -7 --------- Run | Scr Mat Min Mat Mat Fac Machines Accessed 9 | . 3 . . 3 3 Terminals 7 | . 3 . . 3 1 Fabricators . | . . . . . . Repair Stations 1 | . . . . . 1 Recycling Units 1 | . . . . . 1 Scanalyzers . | . . . . . . Garrison Access . | . . . . . . Total Hacks 29 | . 7 . . 15 7 Successful 14 | . 4 . . 7 3 Failed 15 | . 3 . . 8 4 Catastrophic 3 | . . . . 1 2 Database Lockouts . | . . . . . . Manual 8 | . 3 . . 5 . Terminals 24 | . 7 . . 15 2 Fabricators . | . . . . . . Repair Stations 4 | . . . . . 4 Recycling Units 1 | . . . . . 1 Scanalyzers . | . . . . . . Garrison Access . | . . . . . . Terminal Hacks 11 | . 4 . . 7 . Terminal Index 1 | . 1 . . . . Alert Level 3 | . 1 . . 2 . Unreport Threat 2 | . 1 . . 1 . Security Status 1 | . . . . 1 . Reinforcement Status 1 | . . . . 1 . Recall Investigation 2 | . 1 . . 1 . Zone Layout 1 | . . . . 1 . Fabricator Hacks . | . . . . . . Repair Station Hacks 2 | . . . . . 2 Scan Component 1 | . . . . . 1 Refit 1 | . . . . . 1 Recycling Unit Hacks 1 | . . . . . 1 Report Inventory 1 | . . . . . 1 Scanalyzer . | . . . . . . Garrison Access Hacks . | . . . . . . Unauthorized Hacks . | . . . . . . Terminals . | . . . . . . Fabricators . | . . . . . . Repair Stations . | . . . . . . Recycling Units . | . . . . . . Scanalyzers . | . . . . . . Garrison Access . | . . . . . . Data Cores Recovered . | . . . . . . Used . | . . . . . . Hacking Detections 7 | . 3 . . 3 1 Full Trace Events 3 | . 1 . . 1 1 Feedback Events . | . . . . . . Feedback Blocked . | . . . . . . Robot Schematics Acquired . | . . . . . . Robots Built . | . . . . . . Authchips . | . . . . . . Time . | . . . . . . Total Robot Build Rating . | . . . . . . Part Schematics Acquired . | . . . . . . Parts Built . | . . . . . . Authchips . | . . . . . . Time . | . . . . . . Total Part Build Rating . | . . . . . . Parts Repaired . | . . . . . . Time . | . . . . . . Parts Recycled . | . . . . . . Recycled Matter . | . . . . . . Retrieved Matter . | . . . . . . Retrieved Components . | . . . . . . Parts Scanalyzed . | . . . . . . Part Schematics Acquired . | . . . . . . Parts Damaged . | . . . . . . Bothacking | -11 -10 -10 -9 -8 -7 ------------ Run | Scr Mat Min Mat Mat Fac Used RIF Installer . | . . . . . . Robots Hacked . | . . . . . . Non-combat . | . . . . . . Combat . | . . . . . . Robot Hacks Applied . | . . . . . . Relay Couplers Released . | . . . . . . Fabnet Peak Effective % . | . . . . . . Robots Rewired . | . . . . . . Allies Hacked . | . . . . . . Hacks Repelled . | . . . . . . Allies | -11 -10 -10 -9 -8 -7 -------- Run | Scr Mat Min Mat Mat Fac Total Allies . | . . . . . . Largest Group . | . . . . . . Highest-Rated Group . | . . . . . . Highest-Rated Ally . | . . . . . . Total Orders . | . . . . . . Ally Attacks . | . . . . . . Total Damage . | . . . . . . Kills . | . . . . . . Allies Corrupted . | . . . . . . Allies Melted . | . . . . . . Intel | -11 -10 -10 -9 -8 -7 ------- Run | Scr Mat Min Mat Mat Fac Robot Analysis Total . | . . . . . . Derelict Logs Recovered . | . . . . . . Drone Launches . | . . . . . . Drone Recoveries . | . . . . . . Exploration | -11 -10 -10 -9 -8 -7 ------------- Run | Scr Mat Min Mat Mat Fac Turns Passed 2201 | 58 440 219 274 243 967 Spaces Moved 1786 | 42 378 438 362 154 412 Core 128 | 4 . . . 9 115 Treads 146 | . . . . . 146 Legs 223 | 38 173 . . . 12 Wheels . | . . . . . . Hover 493 | . . . 209 145 139 Flight 796 | . 205 438 153 . . Fastest Speed 37 | 50 37 37 37 52 50 Average Speed 85 | 113 76 37 45 99 173 Slowest Speed 600 | 120 200 37 60 350 600 Overloaded Moves . | . . . . . . Propulsion Burnouts . | . . . . . . Robots Hopped 1 | . . 1 . . . Cave-ins Triggered . | . . . . . . Exploration Rate (%) 24 | 4 48 48 25 17 7 Regions Visited 5 Branch Regions 1 Pre-discovered Areas . | . . . . . . Known Exits Taken 4 | . 1 1 1 1 . Unknown Exits Taken 1 | 1 . . . . . Scrap Searched . | . . . . . . Spaces Dug . | . . . . . . Terrain Destroyed 13 | . . . . 3 10 Melee . | . . . . . . Projectile 6 | . . . . . 6 AOE 7 | . . . . 3 4 Terrain Rammed . | . . . . . . Walls Destroyed . | . . . . . . Machines Disabled . | . . . . . . Actions | -11 -10 -10 -9 -8 -7 --------- Run | Scr Mat Min Mat Mat Fac Total 2204 | 49 494 479 419 205 558 Wait 90 | 1 57 23 . 4 5 Move 1779 | 41 377 435 361 153 412 Hop 1 | . . 1 . . . Pick Up 33 | . 14 2 2 9 6 Fast Attach 39 | 6 2 2 6 1 22 Attach 10 | . 2 . 2 3 3 Detach . | . . . . . . Swap 28 | 1 10 2 4 5 6 Drop 47 | . 13 3 10 5 16 Fire 115 | . 19 11 34 25 26 Melee 32 | . . . . . 32 Ram 30 | . . . . . 30 Kick . | . . . . . . Crush . | . . . . . . Escape Stasis . | . . . . . . Rewire . | . . . . . . Trap . | . . . . . . Miscellaneous . | . . . . . . Route ------- -11/Scrapyard -10/Materials (discovered 2 exits: *Mat / *Min) -10/Mines -9/Materials -8/Materials (discovered 2 exits: *Fac / *Sto) -7/Factory History --------- Turn | Location | Event 7 | -11/Scrapyard | Discovered new exit (range 15) 59 | -11/Scrapyard | Entered Materials 311 | -10/Materials | Build established: Mutant 323 | -10/Materials | Discovered new exit (range 7) 489 | -10/Materials | Discovered new exit (range 16) 495 | -10/Materials | Identified exit to Mines 499 | -10/Materials | Entered Mines 513 | -10/Mines | Assembled infested the area 561 | -10/Mines | Joined a pair of Derelicts in attacking an 0b10 outpost 673 | -10/Mines | Core integrity fell below 50% 713 | -10/Mines | Discovered new exit (range 10) 717 | -10/Mines | Identified exit to Materials 718 | -10/Mines | Entered Materials 718 | -9/Materials | Evolved 2 slots: Propulsion x1, Utility x1 929 | -9/Materials | Discovered new exit (range 15) 954 | -9/Materials | Identified exit to Materials 992 | -9/Materials | Entered another Materials area 992 | -8/Materials | Evolved 2 slots: Power x1, Propulsion x1 1003 | -8/Materials | Discovered new exit (range 11) 1088 | -8/Materials | Identified exit to Storage 1212 | -8/Materials | Discovered new exit (range 7) 1231 | -8/Materials | Lost 3 parts (3n) 1231 | -8/Materials | Identified exit to Factory 1235 | -8/Materials | Entered Factory 1235 | -7/Factory | Evolved 2 slots: Utility x2 1446 | -7/Factory | Core integrity fell below 50% 1470 | -7/Factory | Lost 9 parts (1p2n5u1w) 1805 | -7/Factory | Lost 3 parts (2n1u) 1813 | -7/Factory | Core integrity fell below 20% 2196 | -7/Factory | System corruption reached 10% 2202 | -7/Factory | Destroyed by P-60 Hacker with Shock Rifle Last Messages --------------- 02144_ Acquired 28 matter. 02150_ R-06 Scavenger collects Sml. Matter Pod. 02154_ R-06 Scavenger collects Wheel. 02156_ Acquired Hvy. Hammer. 02158_ R-06 Scavenger collects Unknown Engine. 02162_ System corrupted: Matter fused (-6). 02162_ R-06 Scavenger collects Aluminum Leg. 02164_ Acquired Aluminum Leg. 02175_ Acquired 3 matter. 02175_ Imp. Light Armor Plating destroyed. 02178_ Adv. Assault Cannon destroyed. 02185_ S>PT|ROPSE7=H:EUF%FWP ZO7/:DU0H%R 02188_ Aluminum Leg destroyed. 02194_ P-60 Hacker suffers critical hit (Smash). 02194_ Destroyed Target Analyzer. 02194_ Destroyed Gravmag System. 02194_ P-60 Hacker system corrupted by crushing effect. 02195_ P-60 Hacker IFF system glitched. 02195_ Imp. Light Armor Plating destroyed. 02201_ Acquired 39 matter. Map ----- +----------------------------------------------------+ | ?????????????????????????????????????????????????? | | ?????????????????????????????????????????????????? | | ?????????????????????????????????????????????????? | | ?????????????????????????????????????????????????? | | ?????????????????????????????????????????????????? | | ?????????????????????????????????????????????????? | | ?????????????????????????????????????????????????? | | ?????????????????????????????????????????????????? | | ?????????????????????????????????????????????????? | | ?#???????????????????????????????????????????????? | | #???????????????????????????????????????????????? | | #???????????????????????????????????????????????? | | #???????????????????????????????????????????????? | | #???????????????????????????????????????????????? | | #???????????????????????????????????????????????? | | #???#???##??????????????????????????????????????? | | #?############??????????????????????????????????? | | #### #???????????""?????????????????????? | | + #???????????"??????????????????????? | | # #???????????"??????????????????????? | | # #??????????? ??????????????????????? | | # #?????????#+#??????????????????????? | | + ! #?????????# #??????????????????????? | | # #####+##### #??????????????????????? | | # !!!! ## u ## #####??????????????????? | | ####+####### @p #??????????????????? | | % #??????????????????? | | % % #??????????????????? | | #??????????????????? | | ################ % #??????????????????? | | #??????????????# ####+###??????????????????? | | #??????????????### ###???? ???????????????????? | | #???????????????## #??????? ?????????????????? | | #????????????????# #????????? ????????????????? | | #????????????????# #?????????? #??????????????? | | #????????????????# #???????????##??????????????? | | #???????????????? ???????????????????????????? | | #???????????????# ??????????????????????????? | | #???????????????+ ??????????????????????????? | | #???????????????# ?????????????????????????? | | +???????????????# ###????????????????????????? | | #???????????????#######??????????????????????????? | | #????????????????????????????????????????????????? | | #????????????????????????????????????????????????? | | ?????????????????????????????????????????????????? | | | | | | | | | | | +----------------------------------------------------+ Best States ------------- Heat Dissipation 76 Energy Generation 27 Energy Capacity 350 Matter Stores 300 Matter Capacity 300 Sight Range 16 Robot Scan Range 14 Terrain Scan Range 16 Terrain Scan Density 10 ECM Strength 2 Jamming Range 12 Armor Coverage 600 Evasion (%) 62 Targeting Accuracy 8 Recoil Reduction 6 Item Schematics ----------------- None Robot Schematics ------------------ None Fabricated ------------ Nothing Alien Tech Used ----------------- None Achievements -------------- None Challenges ------------ None Game ------ Seed SeismicPortableReplicator Manual? 0 Play Time 00:37:40 Cumulative 12.7 hours Start 2022.04.07 @ 16:23:06 End 2022.04.07 @ 16:58:22 Sessions 1 Manual Loads 0 Difficulty Rogue Special Mode None Game No. 25 Rogue 25 Adventurer 0 Explorer 0 Win Type - Total 0 Types 0/0/0/0/0/0/0/0/0 Lore% 13 Gallery% 20 Achievement% 17 Wizard Run 0 Options --------- ASCII 0 Keyboard 0 Movement Numpad Keybinds 0 Fullscreen 2 Font 18/SmallcapsGlow Map View 76x50 Tactical HUD 1 Map Filters NONE Filters NONE Steam 1 RUN: 347e245e-eee5-46e6-9e9a-e0c571d0752b